fUST/lending_fUST_20240630
["ID","MTS","AMOUNT","RATE_DAILY","PERIOD"]
[330654817,1719693046423,-500.0,0.00016949,2]
[330654818,1719693046432,-12156.15083957,0.0001695,2]
[330654823,1719693046912,-500.0,0.00016896,2]
[330654824,1719693046922,-500.0,0.00016896,2]
[330654825,1719693046931,-500.0,0.00016944,2]
[330654826,1719693046940,-12069.11208804,0.0001695,2]
[330654865,1719693047705,-500.0,0.00016943,2]
[330654867,1719693047717,-8324.58707239,0.0001695,2]
[330654869,1719693047726,-396.078909,0.0001695,2]
[330654871,1719693047735,-396.078909,0.0001695,2]
[330654873,1719693047744,-942.74,0.0001695,2]
[330654875,1719693047754,-524.73,0.0001695,2]
[330654889,1719693047875,-500.0,0.0001695,2]
[330654891,1719693047888,-500.0,0.0001695,2]
[330654893,1719693047898,-2251.26,0.0001695,2]
[330654895,1719693047907,-549.65,0.0001695,2]
[330654897,1719693047916,-1712.84,0.0001695,2]
[330654899,1719693047925,-2999.79,0.0001695,2]
[330654901,1719693047935,-1385.8,0.0001695,2]
[330654903,1719693047944,-790.33,0.0001695,2]
[330654905,1719693047953,-940.59,0.0001695,2]
[330654907,1719693047964,-576.61628358,0.0001695,2]
[330654909,1719693047974,-500.0,0.0001695,2]
[330654911,1719693047983,-723.57,0.0001695,2]
[330654913,1719693047992,-500.0,0.0001695,2]
[330654915,1719693048001,-500.0,0.0001695,2]
[330654917,1719693048011,-517.93,0.0001695,2]
[330654919,1719693048020,-151.0,0.0001695,2]
[330654921,1719693048029,-979.42,0.0001695,2]
[330654923,1719693048038,-151.0,0.0001695,2]
[330654925,1719693048047,-751.54,0.0001695,2]
[330654927,1719693048056,-1069.02,0.0001695,2]
[330654929,1719693048065,-500.0,0.0001695,2]
[330654930,1719693048074,-2398.58,0.0001695,2]
[330654932,1719693048083,-959.55,0.0001695,2]
[330654934,1719693048092,-3871.18,0.0001695,2]
[330654936,1719693048102,-620.23172897,0.0001695,2]
[330654938,1719693048114,-7761.42363677,0.0001695,2]
[330654940,1719693048125,-620.33566468,0.0001695,2]
[330655242,1719693157291,2334.61575589,0.00014999,4]
[330655297,1719694232694,-1441.19302879,0.00015833,2]
[330655298,1719694232706,-683.53129833,0.00015833,2]
[330655785,1719694238601,-1688.40949681,0.00015833,2]
[330655787,1719694238615,-21076.86617607,0.00015833,2]
[330655789,1719694238628,-4599.3788422,0.00016449,2]
[330655792,1719694238640,-685.76405295,0.00016449,2]
[330655794,1719694238651,-883.2191869,0.00016693,2]
[330655795,1719694238661,-3067.44970634,0.00016793,2]
[330655798,1719694238672,-2000.0,0.00016795,2]
[330655799,1719694238682,-3067.44970633,0.00016806,2]
[330655801,1719694238692,-500.0,0.00016816,2]
[330655803,1719694238702,-500.0,0.00016816,2]
[330655805,1719694238712,-10258.32,0.00016817,2]
[330655807,1719694238723,-599.05,0.00016817,2]
[330655809,1719694238733,-2997.04,0.00016817,2]
[330655811,1719694238743,-8026.09,0.00016817,2]
[330655813,1719694238753,-935.23,0.00016817,2]
[330655815,1719694238763,-3067.44970633,0.00016818,2]
[330655818,1719694238773,-1068.71602134,0.00016819,2]
[330655819,1719694238784,-500.0,0.0001682,2]
[330655822,1719694238794,-641.33,0.0001682,2]
[330655824,1719694238804,-500.0,0.0001682,2]
[330655826,1719694238815,-500.0,0.0001682,2]
[330655828,1719694238825,-893.91,0.0001682,2]
[330655830,1719694238835,-500.0,0.0001682,2]
[330655832,1719694238844,-501.60792598,0.0001682,2]
[330655833,1719694238854,-500.0,0.0001682,2]
[330655835,1719694238864,-500.0,0.0001682,2]
[330655838,1719694238879,-500.0,0.0001682,2]
[330655840,1719694238890,-62188.71,0.0001682,2]
[330655842,1719694238905,-677.46,0.0001682,2]
[330655844,1719694238915,-519.75471503,0.0001682,2]
[330655845,1719694238925,-500.0,0.0001682,2]
[330655848,1719694238935,-2665.21,0.0001682,2]
[330655849,1719694238945,-1216.46,0.0001682,2]
[330655852,1719694238955,-183.40138099,0.0001682,2]
[330655854,1719694238964,-500.0,0.0001682,2]
[330655856,1719694238974,-11834.81,0.0001682,2]
[330655858,1719694238983,-500.0,0.0001682,2]
[330655860,1719694238993,-543.58763257,0.0001682,2]
[330655861,1719694239004,-500.0,0.0001682,2]
[330655863,1719694239014,-500.0,0.0001682,2]
[330655865,1719694239024,-503.32054217,0.0001682,2]
[330655867,1719694239034,-500.0,0.0001682,2]
[330655869,1719694239044,-500.0,0.0001682,2]
[330655871,1719694239054,-500.0,0.0001682,2]
[330655873,1719694239065,-1000.0,0.0001682,2]
[330655875,1719694239076,-500.0,0.0001682,2]
[330655877,1719694239086,-538.1489988,0.0001682,2]
[330655879,1719694239097,-528.6361372,0.0001682,2]
[330655881,1719694239112,-500.0,0.0001682,2]
[330655883,1719694239124,-500.0,0.0001682,2]
[330655885,1719694239135,-4430.46,0.0001682,2]
[330655887,1719694239145,-1015.74,0.0001682,2]
[330655889,1719694239156,-500.0,0.0001682,2]
[330655892,1719694239167,-408.71040211,0.0001682,2]
[330655893,1719694239179,-734.59,0.0001682,2]
[330655895,1719694239189,-500.0,0.0001682,2]
[330655897,1719694239199,-881.53,0.0001682,2]
[330655900,1719694239210,-501.89133462,0.0001682,2]
[330655901,1719694239220,-500.0,0.0001682,2]
[330655903,1719694239229,-500.0,0.0001682,2]
[330655905,1719694239239,-500.0,0.0001682,2]
[330655907,1719694239250,-500.0,0.0001682,2]
[330655910,1719694239260,-500.0,0.0001682,2]
[330655912,1719694239272,-500.0,0.0001682,2]
[330655914,1719694239282,-500.0,0.0001682,2]
[330655916,1719694239294,-1733.4,0.0001682,2]
[330655918,1719694239303,-500.0,0.0001682,2]
[330655920,1719694239312,-500.0,0.0001682,2]
[330655922,1719694239321,-500.0,0.0001682,2]
[330655923,1719694239331,-538.49,0.0001682,2]
[330655925,1719694239341,-679.46,0.0001682,2]
[330655927,1719694239351,-500.0,0.0001682,2]
[330655929,1719694239361,-1662.17,0.0001682,2]
[330655931,1719694239373,-500.0,0.0001682,2]
[330655933,1719694239383,-500.0,0.0001682,2]
[330655935,1719694239393,-500.0,0.0001682,2]
[330655938,1719694239406,-500.0,0.0001682,2]
[330655940,1719694239416,-500.0,0.0001682,2]
[330655942,1719694239426,-10607.69,0.0001682,2]
[330655943,1719694239436,-9575.86,0.0001682,2]
[330655946,1719694239447,-500.0,0.0001682,2]
[330655947,1719694239458,-5238.41,0.0001682,2]
[330655949,1719694239468,-3067.44970633,0.00016831,2]
[330655951,1719694239479,-3067.44970633,0.00016843,2]
[330655954,1719694239490,-240.821,0.0001687,2]
[330655955,1719694239500,-88644.03333818,0.00016893,7]
[330655957,1719694239511,-832.24,0.00016893,2]
[330655959,1719694239521,-500.0,0.00016893,2]
[330655961,1719694239531,-500.0,0.00016893,2]
[330655971,1719694239540,-3478.39,0.00016893,2]
[330655973,1719694239637,-1083.87,0.00016893,2]
[330655976,1719694239647,-500.0,0.00016893,2]
[330655978,1719694239656,-500.0,0.00016893,2]
[330655979,1719694239665,-911.89,0.00016893,2]
[330655981,1719694239675,-681.89,0.00016893,2]
[330655983,1719694239685,-4262.74,0.00016893,2]
[330655985,1719694239695,-500.0,0.00016893,2]
[330655987,1719694239704,-500.0,0.00016893,2]
[330655989,1719694239714,-500.0,0.00016893,2]
[330655991,1719694239723,-807.53,0.00016893,2]
[330655993,1719694239733,-2449.27,0.00016893,2]
[330655995,1719694239742,-500.0,0.00016893,2]
[330655997,1719694239753,-500.0,0.00016893,2]
[330655999,1719694239763,-500.0,0.00016893,2]
[330656001,1719694239772,-673.81,0.00016893,2]
[330656003,1719694239782,-774.86,0.00016893,2]
[330656005,1719694239791,-3715.04,0.00016893,2]
[330656007,1719694239801,-879.74,0.00016893,2]
[330656010,1719694239811,-4196.69,0.00016893,2]
[330656012,1719694239820,-17871.81,0.00016893,2]
[330656013,1719694239829,-470.85616767,0.00016893,2]
[330656016,1719694239839,-925.33,0.00016893,2]
[330656017,1719694239849,-500.0,0.00016893,2]
[330656019,1719694239858,-500.0,0.00016893,2]
[330656021,1719694239869,-625.88,0.00016893,2]
[330656023,1719694239878,-1304.58,0.00016893,2]
[330656025,1719694239888,-501.80265765,0.00016893,2]
[330656027,1719694239899,-501.57396138,0.00016893,2]
[330656029,1719694239910,-3990.63,0.00016893,2]
[330656030,1719694239920,-1014.63,0.00016893,2]
[330656031,1719694239930,-500.0,0.00016893,2]
[330656032,1719694239939,-502.00606923,0.00016893,2]
[330656033,1719694239949,-12722.99,0.00016893,2]
[330656034,1719694239958,-1077.37,0.00016893,2]
[330656035,1719694239968,-501.66243871,0.00016893,2]
[330656036,1719694239978,-500.0,0.00016893,2]
[330656037,1719694239988,-1222.69,0.00016893,2]
[330656038,1719694239998,-1753.86,0.00016893,2]
[330656039,1719694240008,-1241.94,0.00016893,2]
[330656041,1719694240018,-533.74,0.00016893,2]
[330656042,1719694240028,-500.0,0.00016893,2]
[330656043,1719694240038,-1577.18,0.00016893,2]
[330656044,1719694240047,-2521.59,0.00016893,2]
[330656045,1719694240056,-1111.04,0.00016893,2]
[330656046,1719694240066,-500.0,0.00016893,2]
[330656047,1719694240075,-14258.82,0.00016893,2]
[330656048,1719694240085,-501.605014,0.00016893,2]
[330656049,1719694240095,-799.24,0.00016893,2]
[330656050,1719694240106,-500.0,0.00016893,2]
[330656051,1719694240116,-2397.5,0.00016893,2]
[330656052,1719694240127,-500.0,0.00016893,2]
[330656053,1719694240136,-4352.6,0.00016893,2]
[330656054,1719694240147,-583.66,0.00016893,2]
[330656055,1719694240157,-4780.1,0.00016893,2]
[330656056,1719694240167,-1075.72,0.00016893,2]
[330656057,1719694240177,-22308.16,0.00016893,2]
[330656058,1719694240188,-2358.48,0.00016893,2]
[330656059,1719694240201,-500.0,0.00016894,2]
[330656060,1719694240223,-500.0,0.00016894,2]
[330656061,1719694240239,-500.0,0.00016894,2]
[330656062,1719694240258,-500.0,0.00016894,2]
[330656063,1719694240280,-500.0,0.00016894,2]
[330656064,1719694240299,-500.0,0.00016894,2]
[330656065,1719694240315,-173.88945522,0.00016894,2]
[330656066,1719694240334,-500.0,0.00016894,2]
[330656067,1719694240346,-1109.57,0.00016894,2]
[330656068,1719694240364,-500.0,0.00016894,2]
[330656069,1719694240384,-1428.35,0.00016894,2]
[330656070,1719694240403,-500.0,0.00016895,2]
[330656071,1719694240417,-635.59642352,0.00016895,2]
[330656072,1719694240435,-500.0,0.00016895,2]
[330656073,1719694240450,-500.0,0.00016895,2]
[330656074,1719694240467,-500.0,0.00016895,2]
[330656075,1719694240480,-500.0,0.00016895,2]
[330656076,1719694240494,-182.78609145,0.00016895,2]
[330656077,1719694240512,-1720.39,0.00016895,2]
[330656078,1719694240526,-500.0,0.00016895,2]
[330656079,1719694240541,-500.0,0.00016895,2]
[330656080,1719694240556,-500.0,0.00016895,2]
[330656081,1719694240571,-500.0,0.00016895,2]
[330656082,1719694240585,-924.98,0.00016895,2]
[330656083,1719694240601,-500.0,0.00016895,2]
[330656084,1719694240616,-545.02406216,0.00016895,2]
[330656085,1719694240631,-524.4488104,0.00016895,2]
[330656086,1719694240646,-545.95292562,0.00016895,2]
[330656087,1719694240661,-291.16888287,0.00016895,2]
[330656088,1719694240676,-663.09,0.00016895,2]
[330656089,1719694240691,-500.0,0.00016895,2]
[330656090,1719694240707,-338.98286592,0.00016895,2]
[330656091,1719694240721,-500.0,0.00016895,2]
[330656092,1719694240736,-500.0,0.00016895,2]
[330656093,1719694240751,-500.0,0.00016895,2]
[330656094,1719694240766,-500.0,0.00016895,2]
[330656095,1719694240780,-500.0,0.00016895,2]
[330656096,1719694240794,-500.0,0.00016895,2]
[330656097,1719694240809,-500.0,0.00016895,2]
[330656098,1719694240824,-500.0,0.00016895,2]
[330656099,1719694240838,-500.0,0.00016895,2]
[330656100,1719694240854,-2221.33,0.00016895,2]
[330656101,1719694240868,-500.0,0.00016895,2]
[330656102,1719694240882,-507.33651066,0.00016895,2]
[330656103,1719694240900,-821.11,0.00016895,2]
[330656104,1719694240914,-536.96716511,0.00016895,2]
[330656105,1719694240929,-976.93,0.00016895,2]
[330656106,1719694240944,-504.08985848,0.00016895,2]
[330656107,1719694240959,-500.0,0.00016895,2]
[330656108,1719694240974,-500.0,0.00016895,2]
[330656109,1719694240989,-500.0,0.00016895,2]
[330656110,1719694241003,-500.0,0.00016895,2]
[330656111,1719694241017,-500.0,0.00016895,2]
[330656112,1719694241031,-500.0,0.00016895,2]
[330656113,1719694241044,-1299.28,0.00016895,2]
[330656114,1719694241056,-500.0,0.00016895,2]
[330656115,1719694241065,-799.36,0.00016895,2]
[330656116,1719694241076,-498.62426849,0.00016895,2]
[330656117,1719694241239,-500.0,0.00016895,2]
[330656118,1719694241249,-1064.59,0.00016895,2]
[330656119,1719694241258,-502.02684967,0.00016895,2]
[330656120,1719694241267,-500.0,0.00016895,2]
[330656121,1719694241277,-1264.18,0.00016895,2]
[330656122,1719694241285,-500.0,0.00016895,2]
[330656123,1719694241294,-912.12,0.00016895,2]
[330656124,1719694241303,-825.98,0.00016895,2]
[330656125,1719694241312,-500.0,0.00016895,2]
[330656126,1719694241322,-500.0,0.00016895,2]
[330656127,1719694241331,-1326.17,0.00016895,2]
[330656128,1719694241339,-500.0,0.00016895,2]
[330656129,1719694241348,-544.93210748,0.00016895,2]
[330656130,1719694241357,-500.0,0.00016895,2]
[330656131,1719694241367,-611.73931763,0.00016895,2]
[330656132,1719694241376,-502.89063744,0.00016895,2]
[330656133,1719694241385,-506.08147581,0.00016895,2]
[330656134,1719694241395,-774.61,0.00016895,2]
[330656135,1719694241404,-752.41,0.00016895,2]
[330656136,1719694241412,-500.0,0.00016895,2]
[330656137,1719694241422,-500.0,0.00016895,2]
[330656138,1719694241430,-1253.45,0.00016895,2]
[330656139,1719694241439,-502.89687144,0.00016895,2]
[330656140,1719694241449,-500.0,0.00016895,2]
[330656141,1719694241458,-511.02104243,0.00016895,2]
[330656142,1719694241467,-629.05078901,0.00016895,2]
[330656143,1719694241477,-501.90636135,0.00016895,2]
[330656144,1719694241486,-500.0,0.00016895,2]
[330656145,1719694241495,-506.25907671,0.00016895,2]
[330656146,1719694241505,-687.69,0.00016895,2]
[330656147,1719694241515,-501.1586156,0.00016895,2]
[330656148,1719694241524,-504.66540187,0.00016895,2]
[330656149,1719694241533,-523.68,0.00016895,2]
[330656150,1719694241543,-500.0,0.00016895,2]
[330656151,1719694241553,-1387.91,0.00016895,2]
[330656152,1719694241561,-809.49,0.00016895,2]
[330656153,1719694241570,-546.09,0.00016895,2]
[330656154,1719694241579,-500.0,0.00016895,2]
[330656155,1719694241588,-657.55,0.00016895,2]
[330656156,1719694241597,-500.0,0.00016895,2]
[330656157,1719694241607,-511.17262431,0.00016895,2]
[330656158,1719694241616,-500.0,0.00016895,2]
[330656159,1719694241626,-500.0,0.00016895,2]
[330656160,1719694241635,-2784.94,0.00016895,2]
[330656161,1719694241644,-184.32497894,0.00016895,2]
[330656162,1719694241653,-500.0,0.00016895,2]
[330656163,1719694241662,-500.0,0.00016895,2]
[330656164,1719694241671,-500.0,0.00016895,2]
[330656165,1719694241680,-500.0,0.00016895,2]
[330656166,1719694241690,-500.0,0.00016895,2]
[330656167,1719694241699,-500.0,0.00016895,2]
[330656168,1719694241708,-500.0,0.00016895,2]
[330656169,1719694241717,-511.28822662,0.00016895,2]
[330656170,1719694241726,-1139.35,0.00016895,2]
[330656171,1719694241736,-500.0,0.00016895,2]
[330656172,1719694241745,-500.0,0.00016895,2]
[330656173,1719694241754,-500.0,0.00016895,2]
[330656174,1719694241763,-1394.6,0.00016895,2]
[330656175,1719694241772,-500.0,0.00016895,2]
[330656176,1719694241781,-500.0,0.00016895,2]
[330656177,1719694241790,-608.80571108,0.00016895,2]
[330656179,1719694241799,-500.0,0.00016895,2]
[330656181,1719694241808,-503.50737533,0.00016895,2]
[330656183,1719694241817,-502.97596274,0.00016895,2]
[330656185,1719694241826,-500.0,0.00016895,2]
[330656187,1719694241835,-1160.16,0.00016895,2]
[330656189,1719694241845,-536.30899488,0.00016895,2]
[330656191,1719694241853,-760.27,0.00016895,2]
[330656193,1719694241862,-500.0,0.00016895,2]
[330656195,1719694241872,-500.0,0.00016895,2]
[330656197,1719694241881,-500.0,0.00016895,2]
[330656199,1719694241889,-644.4,0.00016895,2]
[330656201,1719694241903,-1354.89,0.00016895,2]
[330656203,1719694241912,-643.36,0.00016895,2]
[330656205,1719694241921,-500.0,0.00016895,2]
[330656207,1719694241931,-500.0,0.00016895,2]
[330656209,1719694241939,-502.30739428,0.00016895,2]
[330656211,1719694241949,-500.0,0.00016895,2]
[330656213,1719694241958,-500.0,0.00016895,2]
[330656215,1719694241967,-503.79568185,0.00016895,2]
[330656216,1719694241976,-501.24030663,0.00016895,2]
[330656218,1719694241986,-2515.46,0.00016895,2]
[330656220,1719694241995,-502.75333421,0.00016895,2]
[330656222,1719694242004,-1606.05,0.00016895,2]
[330656224,1719694242014,-1160.0,0.00016895,2]
[330656226,1719694242023,-2885.0,0.00016895,2]
[330656228,1719694242032,-500.0,0.00016895,2]
[330656230,1719694242041,-1719.62,0.00016895,2]
[330656232,1719694242051,-500.0,0.00016895,2]
[330656235,1719694242060,-500.0,0.00016895,2]
[330656237,1719694242070,-500.0,0.00016895,2]
[330656238,1719694242079,-500.0,0.00016895,2]
[330656240,1719694242088,-258.86847943,0.00016895,2]
[330656242,1719694242098,-500.0,0.00016895,2]
[330656245,1719694242112,-500.0,0.00016895,2]
[330656247,1719694242123,-500.0,0.00016895,2]
[330656248,1719694242132,-500.0,0.00016895,2]
[330656251,1719694242142,-500.0,0.00016895,2]
[330656252,1719694242151,-500.0,0.00016895,2]
[330656254,1719694242161,-500.0,0.00016895,2]
[330656257,1719694242171,-500.0,0.00016895,2]
[330656259,1719694242180,-500.0,0.00016895,2]
[330656260,1719694242189,-500.0,0.00016895,2]
[330656263,1719694242199,-500.0,0.00016895,2]
[330656264,1719694242209,-502.75133174,0.00016895,2]
[330656267,1719694242218,-502.0967941,0.00016895,2]
[330656269,1719694242227,-500.0,0.00016895,2]
[330656271,1719694242237,-500.0,0.00016895,2]
[330656273,1719694242246,-500.0,0.00016895,2]
[330656274,1719694242255,-500.0,0.00016895,2]
[330656276,1719694242263,-508.60860022,0.00016895,2]
[330656278,1719694242272,-612.21,0.00016895,2]
[330656280,1719694242282,-502.11441491,0.00016895,2]
[330656283,1719694242292,-500.0,0.00016895,2]
[330656285,1719694242301,-500.0,0.00016895,2]
[330656287,1719694242310,-511.72287953,0.00016895,2]
[330656289,1719694242320,-500.0,0.00016895,2]
[330656291,1719694242329,-630.79,0.00016895,2]
[330656293,1719694242338,-993.33,0.00016895,2]
[330656295,1719694242347,-501.51483843,0.00016895,2]
[330656297,1719694242356,-3039.19,0.00016895,2]
[330656299,1719694242366,-500.0,0.00016895,2]
[330656301,1719694242377,-500.0,0.00016895,2]
[330656302,1719694242386,-484.31130882,0.00016895,2]
[330656305,1719694242396,-834.15,0.00016895,2]
[330656307,1719694242405,-1544.98,0.00016895,2]
[330656308,1719694242415,-500.0,0.00016895,2]
[330656311,1719694242424,-508.53454151,0.00016895,2]
[330656313,1719694242434,-500.0,0.00016895,2]
[330656315,1719694242443,-500.0,0.00016895,2]
[330656317,1719694242452,-701.66,0.00016895,2]
[330656319,1719694242461,-500.0,0.00016895,2]
[330656321,1719694242470,-151.0,0.00016895,2]
[330656322,1719694242479,-502.83049847,0.00016895,2]
[330656325,1719694242489,-151.0,0.00016895,2]
[330656327,1719694242498,-500.97574307,0.00016895,2]
[330656329,1719694242507,-500.0,0.00016895,2]
[330656331,1719694242517,-500.0,0.00016895,2]
[330656333,1719694242526,-500.0,0.00016895,2]
[330656335,1719694242535,-500.0,0.00016895,2]
[330656336,1719694242544,-500.0,0.00016895,2]
[330656338,1719694242553,-500.0,0.00016895,2]
[330656340,1719694242562,-500.0,0.00016895,2]
[330656342,1719694242571,-500.0,0.00016895,2]
[330656344,1719694242581,-982.59,0.00016895,2]
[330656346,1719694242591,-500.0,0.00016895,2]
[330656348,1719694242600,-502.31472678,0.00016895,2]
[330656350,1719694242609,-1702.36,0.00016895,2]
[330656352,1719694242619,-500.0,0.00016895,2]
[330656354,1719694242628,-625.92,0.00016895,2]
[330656356,1719694242637,-500.0,0.00016895,2]
[330656358,1719694242647,-592.94,0.00016895,2]
[330656360,1719694242656,-1703.38,0.00016895,2]
[330656362,1719694242665,-1414.68,0.00016895,2]
[330656364,1719694242675,-553.07,0.00016895,2]
[330656367,1719694242684,-501.86545941,0.00016895,2]
[330656369,1719694242694,-845.16,0.00016895,2]
[330656370,1719694242703,-2157.35,0.00016895,2]
[330656372,1719694242712,-500.0,0.00016895,2]
[330656374,1719694242722,-500.0,0.00016895,2]
[330656376,1719694242731,-500.0,0.00016895,2]
[330656378,1719694242740,-503.2219347,0.00016895,2]
[330656380,1719694242751,-500.0,0.00016895,2]
[330656382,1719694242760,-21640.41,0.00016895,2]
[330656385,1719694242770,-500.0,0.00016895,2]
[330656386,1719694242779,-500.0,0.00016895,2]
[330656388,1719694242788,-2868.63,0.00016895,2]
[330656390,1719694242797,-501.48110291,0.00016895,2]
[330656392,1719694242806,-500.0,0.00016895,2]
[330656395,1719694242816,-500.0,0.00016895,2]
[330656397,1719694242825,-500.0,0.00016895,2]
[330656399,1719694242834,-503.78135278,0.00016895,2]
[330656400,1719694242843,-500.0,0.00016895,2]
[330656402,1719694242853,-500.0,0.00016895,2]
[330656404,1719694242862,-339.79054982,0.00016895,2]
[330656406,1719694242872,-500.0,0.00016895,2]
[330656408,1719694242883,-500.0,0.00016895,2]
[330656410,1719694242892,-501.4466836,0.00016895,2]
[330656412,1719694242902,-500.0,0.00016895,2]
[330656415,1719694242912,-500.0,0.00016895,2]
[330656416,1719694242921,-1638.44,0.00016895,2]
[330656418,1719694242931,-504.10739124,0.00016895,2]
[330656421,1719694242941,-300.0,0.00016895,2]
[330656423,1719694242950,-500.0,0.00016895,2]
[330656425,1719694242959,-3875.96,0.00016895,2]
[330656427,1719694242968,-500.0,0.00016896,2]
[330656444,1719694242977,-500.0,0.00016896,2]
[330656452,1719694243074,-500.0,0.00016896,2]
[330656455,1719694243084,-1461.71,0.00016896,2]
[330656458,1719694243094,-500.0,0.00016896,2]
[330656461,1719694243105,-500.0,0.00016896,2]
[330656464,1719694243116,-503.5916084,0.00016896,2]
[330656466,1719694243126,-2155.46,0.00016896,2]
[330656469,1719694243135,-503.32619059,0.00016896,2]
[330656472,1719694243144,-153.0,0.000169,2]
[330656475,1719694243154,-153.0,0.000169,2]
[330656478,1719694243163,-153.0,0.000169,2]
[330656480,1719694243172,-153.0,0.000169,2]
[330656482,1719694243184,-153.0,0.000169,2]
[330656484,1719694243193,-153.0,0.000169,2]
[330656486,1719694243202,-153.0,0.000169,2]
[330656488,1719694243211,-153.0,0.000169,2]
[330656491,1719694243220,-153.0,0.000169,2]
[330656494,1719694243230,-153.0,0.000169,2]
[330656498,1719694243239,-153.0,0.000169,2]
[330656502,1719694243248,-153.0,0.000169,2]
[330656505,1719694243257,-153.0,0.000169,2]
[330656509,1719694243266,-153.0,0.000169,2]
[330656513,1719694243276,-153.0,0.000169,2]
[330656517,1719694243285,-153.0,0.000169,2]
[330656521,1719694243295,-153.0,0.000169,2]
[330656525,1719694243304,-153.0,0.000169,2]
[330656528,1719694243313,-153.0,0.000169,2]
[330656531,1719694243322,-205.9490316,0.000169,2]
[330656534,1719694243332,-153.0,0.000169,2]
[330656537,1719694243341,-153.0,0.000169,2]
[330656540,1719694243350,-205.9490316,0.000169,2]
[330656543,1719694243359,-307.9960519,0.000169,2]
[330656545,1719694243367,-153.0,0.000169,2]
[330656547,1719694243378,-205.9490316,0.000169,2]
[330656549,1719694243386,-153.0,0.000169,2]
[330656552,1719694243396,-205.9490316,0.000169,2]
[330656554,1719694243405,-153.0,0.000169,2]
[330656556,1719694243414,-153.0,0.000169,2]
[330656558,1719694243423,-306.0,0.000169,2]
[330656560,1719694243431,-153.0,0.000169,2]
[330656562,1719694243440,-153.0,0.000169,2]
[330656564,1719694243450,-153.0,0.000169,2]
[330656566,1719694243459,-153.0,0.000169,2]
[330656568,1719694243470,-153.0,0.000169,2]
[330656570,1719694243480,-316.863127,0.00016942,2]
[330656572,1719694243489,-316.863127,0.00016942,2]
[330656574,1719694243499,-167.766167,0.00016942,2]
[330656576,1719694243509,-151.0,0.00016942,2]
[330656578,1719694243518,-500.0,0.00016942,2]
[330656580,1719694243528,-500.0,0.00016942,2]
[330656582,1719694243536,-500.0,0.00016942,2]
[330656584,1719694243546,-500.0,0.00016942,2]
[330656586,1719694243555,-500.0,0.00016942,2]
[330656588,1719694243563,-500.0,0.00016942,2]
[330656590,1719694243572,-2868.63,0.00016942,2]
[330656592,1719694243581,-2868.63,0.00016942,2]
[330656594,1719694243591,-503.78651741,0.00016943,2]
[330656596,1719694243599,-298.43466753,0.00016943,2]
[330656598,1719694243608,-500.0,0.00016943,2]
[330656600,1719694243618,-502.05521604,0.00016943,2]
[330656602,1719694243627,-500.0,0.00016943,2]
[330656604,1719694243636,-396.75492209,0.00016943,2]
[330656606,1719694243645,-500.0,0.00016943,2]
[330656608,1719694243655,-500.0,0.00016943,2]
[330656610,1719694243664,-502.27215851,0.00016943,2]
[330656612,1719694243673,-630.341898,0.00016943,2]
[330656614,1719694243682,-501.96270026,0.00016943,2]